fUSD/lending_fUSD_20250825
["ID","MTS","AMOUNT","RATE_DAILY","PERIOD"]
[381149708,1756083032761,-275.8545,0.00020379,2]
[381149709,1756083032772,-532.12780688,0.00020379,2]
[381149710,1756083032781,-11946.15100526,0.00020379,2]
[381149711,1756083032791,-406.89115141,0.00020379,2]
[381149712,1756083032800,-6837.56442695,0.00020379,2]
[381149713,1756083032810,-414.46946412,0.0002038,2]
[381149714,1756083032819,-3723.83993936,0.0002038,2]
[381149715,1756083032828,-1620.28150698,0.00020382,2]
[381149716,1756083032837,-5229.20165815,0.00020384,2]
[381149717,1756083032847,-469.13,0.000204,2]
[381149718,1756083032857,-799.32,0.000204,2]
[381149719,1756083032866,-1078.43,0.000204,2]
[381149720,1756083032876,-291.21,0.0002041,2]
[381149721,1756083032886,-168.0,0.00020431,2]
[381149722,1756083032895,-6837.5644269,0.0002044,2]
[381149723,1756083032905,-168.0,0.00020441,2]
[381149724,1756083032914,-155.55290222,0.00020447,2]
[381149725,1756083032924,-150.0,0.00020466,4]
[381149726,1756083032933,-5598.0,0.00020466,2]
[381149727,1756083032942,-171.83,0.00020468,2]
[381149728,1756083032952,-688.37,0.00020468,2]
[381149729,1756083032961,-171.83,0.00020468,2]
[381149730,1756083032971,-171.83,0.00020468,2]
[381149731,1756083032980,-688.37,0.00020468,2]
[381149732,1756083032990,-596.60293259,0.00020468,2]
[381149733,1756083032999,-500.0,0.0002047,2]
[381149734,1756083033009,-11946.15100525,0.0002047,2]
[381149735,1756083033020,-500.0,0.00020473,2]
[381149736,1756083033030,-500.0,0.00020473,2]
[381149737,1756083033040,-500.7075064,0.00020473,2]
[381149738,1756083033050,-162.17033706,0.00020473,2]
[381149739,1756083033060,-500.0,0.00020473,2]
[381149740,1756083033070,-500.0,0.00020473,2]
[381149741,1756083033080,-500.0,0.00020473,2]
[381149742,1756083033090,-500.0,0.00020473,2]
[381149743,1756083033103,-500.0,0.00020473,2]
[381149744,1756083033112,-500.0,0.00020473,2]
[381149745,1756083033122,-500.0,0.00020473,2]
[381149746,1756083033131,-500.0,0.00020473,2]
[381149747,1756083033141,-500.0,0.00020473,2]
[381149748,1756083033151,-500.0,0.00020473,2]
[381149749,1756083033161,-517.4363872,0.00020473,2]
[381149750,1756083033171,-500.0,0.00020473,2]
[381149751,1756083033182,-511.72898354,0.00020473,2]
[381149752,1756083033192,-500.0,0.00020473,2]
[381149753,1756083033202,-500.0,0.00020473,2]
[381149754,1756083033212,-500.0,0.00020473,2]
[381149755,1756083033222,-500.0,0.00020473,2]
[381149756,1756083033232,-168.0,0.00020474,2]
[381149757,1756083033242,-400.0,0.00020478,2]
[381149758,1756083033252,-400.0,0.00020478,2]
[381149759,1756083033261,-942.12,0.00020478,2]
[381149760,1756083033273,-400.0,0.00020478,2]
[381149761,1756083033283,-400.0,0.00020478,2]
[381149762,1756083033294,-400.0,0.00020478,2]
[381149763,1756083033304,-1444.29,0.00020478,2]
[381149764,1756083033314,-400.0,0.00020478,2]
[381149765,1756083033323,-438.02,0.00020478,2]
[381149766,1756083033333,-400.73139226,0.00020478,2]
[381149767,1756083033343,-400.0,0.00020478,2]
[381149768,1756083033352,-176.51750938,0.00020478,2]
[381149769,1756083033362,-400.0,0.00020478,2]
[381149770,1756083033371,-467.5,0.00020478,2]
[381149771,1756083033381,-400.0,0.00020478,2]
[381149772,1756083033391,-400.0,0.00020478,2]
[381149773,1756083033401,-1037.71,0.00020478,2]
[381149774,1756083033411,-1496.5,0.00020478,2]
[381149775,1756083033420,-400.0,0.00020478,2]
[381149776,1756083033430,-658.08,0.00020478,2]
[381149777,1756083033439,-400.0,0.00020478,2]
[381149778,1756083033450,-400.0,0.00020478,2]
[381149779,1756083033460,-781.14,0.00020478,2]
[381149780,1756083033470,-493.75,0.00020478,2]
[381149781,1756083033481,-400.0,0.00020478,2]
[381149782,1756083033491,-400.0,0.00020478,2]
[381149783,1756083033501,-272.61276803,0.00020478,2]
[381149784,1756083033516,-199.31723197,0.00020478,2]
[381149785,1756083033527,-400.0,0.00020478,2]
[381149786,1756083033536,-400.0,0.00020478,2]
[381149787,1756083033548,-947.39,0.00020478,2]
[381149788,1756083033558,-400.0,0.00020478,2]
[381149789,1756083033568,-400.0,0.00020478,2]
[381149790,1756083033579,-400.0,0.00020478,2]
[381149791,1756083033589,-400.0,0.00020478,2]
[381149792,1756083033599,-400.0,0.00020478,2]
[381149793,1756083033609,-292.48890803,0.00020478,2]
[381149794,1756083033639,-644.97109197,0.00020478,2]
[381149795,1756083033648,-1497.84,0.00020478,2]
[381149796,1756083033658,-1348.26,0.00020478,2]
[381149797,1756083033668,-33.92890803,0.00020478,2]
[381149798,1756083033680,-1285.71109197,0.00020478,2]
[381149799,1756083033690,-315.76348942,0.00020478,2]
[381149800,1756083033700,-400.0,0.00020478,2]
[381149801,1756083033710,-695.31,0.00020478,2]
[381149802,1756083033720,-400.0,0.00020478,2]
[381149803,1756083033729,-745.48,0.00020478,2]
[381149804,1756083033739,-430.57,0.00020478,2]
[381149805,1756083033749,-454.77792978,0.00020478,2]
[381149806,1756083033759,-400.0,0.00020478,2]
[381149807,1756083033769,-935.29,0.00020478,2]
[381149808,1756083033780,-400.0,0.00020478,2]
[381149809,1756083033791,-400.0,0.00020478,2]
[381149810,1756083033801,-948.66,0.00020478,2]
[381149811,1756083033811,-521.49,0.00020478,2]
[381149812,1756083033821,-400.0,0.00020478,2]
[381149813,1756083033831,-400.0,0.00020478,2]
[381149814,1756083033842,-1582.95,0.00020478,2]
[381149815,1756083033852,-400.0,0.00020478,2]
[381149816,1756083033861,-421.87,0.00020478,2]
[381149817,1756083033871,-499.70451102,0.00020478,2]
[381149818,1756083033908,-5.41548898,0.00020478,2]
[381149819,1756083033918,-587.31504529,0.00020478,2]
[381149820,1756083033930,-250.16409359,0.00020478,2]
[381149821,1756083033941,-133.87086112,0.00020478,2]
[381149822,1756083033950,-339.42913889,0.00020478,2]
[381149823,1756083034168,-60.57086111,0.00020478,2]
[381149824,1756083034178,-400.0,0.00020478,2]
[381149825,1756083034188,-400.0,0.00020478,2]
[381149826,1756083034197,-443.04,0.00020478,2]
[381149827,1756083034207,-500.0,0.00020478,2]
[381149828,1756083034217,-400.0,0.00020478,2]
[381149829,1756083034227,-400.0,0.00020478,2]
[381149830,1756083034237,-436.08,0.00020478,2]
[381149831,1756083034247,-400.0,0.00020478,2]
[381149832,1756083034256,-400.0,0.00020478,2]
[381149833,1756083034266,-400.0,0.00020478,2]
[381149834,1756083034275,-400.0,0.00020478,2]
[381149835,1756083034286,-400.0,0.00020478,2]
[381149836,1756083034297,-400.0,0.00020478,2]
[381149837,1756083034306,-496.2,0.00020478,2]
[381149838,1756083034316,-400.0,0.00020478,2]
[381149839,1756083034325,-1040.15,0.00020478,2]
[381149840,1756083034335,-400.0,0.00020478,2]
[381149841,1756083034344,-400.0,0.00020478,2]
[381149842,1756083034354,-400.0,0.00020478,2]
[381149843,1756083034363,-400.0,0.00020478,2]
[381149844,1756083034373,-261.067,0.00020478,2]
[381149845,1756083034384,-972.87,0.00020478,2]
[381149846,1756083034393,-400.0,0.00020478,2]
[381149847,1756083034403,-400.0,0.00020478,2]
[381149848,1756083034413,-400.0,0.00020478,2]
[381149849,1756083034423,-887.97,0.00020478,2]
[381149850,1756083034433,-400.0,0.00020478,2]
[381149851,1756083034443,-400.0,0.00020478,2]
[381149852,1756083034454,-400.0,0.00020478,2]
[381149853,1756083034464,-678.5,0.00020478,2]
[381149854,1756083034474,-400.0,0.00020478,2]
[381149855,1756083034484,-400.0,0.00020478,2]
[381149856,1756083034494,-400.0,0.00020478,2]
[381149857,1756083034504,-400.0,0.00020478,2]
[381149858,1756083034515,-400.0,0.00020478,2]
[381149859,1756083034525,-151.0,0.00020478,2]
[381149860,1756083034535,-1487.54,0.00020478,2]
[381149861,1756083034545,-400.0,0.00020478,2]
[381149862,1756083034556,-151.0,0.00020478,2]
[381149863,1756083034565,-151.0,0.00020478,2]
[381149864,1756083034576,-151.0,0.00020478,2]
[381149865,1756083034585,-151.0,0.00020478,2]
[381149866,1756083034596,-400.0,0.00020478,2]
[381149867,1756083034606,-617.36,0.00020478,2]
[381149868,1756083034617,-1000.0,0.00020478,2]
[381149869,1756083034627,-400.0,0.00020478,2]
[381149870,1756083034637,-400.0,0.00020478,2]
[381149871,1756083034647,-400.0,0.00020478,2]
[381149872,1756083034656,-151.0,0.00020478,2]
[381149873,1756083034666,-151.0,0.00020478,2]
[381149874,1756083034676,-400.0,0.00020478,2]
[381149875,1756083034685,-151.0,0.00020478,2]
[381149876,1756083034695,-400.0,0.00020478,2]
[381149877,1756083034706,-197.318194,0.00020478,2]
[381149878,1756083034716,-417.46,0.00020478,2]
[381149879,1756083034726,-151.0,0.00020478,2]
[381149880,1756083034736,-151.0,0.00020478,2]
[381149881,1756083034745,-197.318194,0.00020478,2]
[381149882,1756083034755,-400.0,0.00020478,2]
[381149883,1756083034765,-155.19038,0.00020478,2]
[381149884,1756083034774,-197.318194,0.00020478,2]
[381149885,1756083034784,-151.0,0.00020478,2]
[381149886,1756083034793,-197.318194,0.00020478,2]
[381149887,1756083034803,-151.0,0.00020478,2]
[381149888,1756083034812,-960.95,0.00020478,2]
[381149889,1756083034822,-624.51138918,0.00020478,2]
[381149890,1756083034831,-196.41850945,0.00020478,2]
[381149891,1756083034840,-811.19,0.00020478,2]
[381149892,1756083034854,-151.0,0.00020478,2]
[381149893,1756083034864,-151.0,0.00020478,2]
[381149894,1756083034873,-400.0,0.00020478,2]
[381149895,1756083034883,-151.407951,0.00020478,2]
[381149896,1756083034892,-151.0,0.00020478,2]
[381149897,1756083034902,-400.0,0.00020478,2]
[381149898,1756083034911,-151.0,0.00020478,2]
[381149899,1756083034921,-723.15,0.00020478,2]
[381149900,1756083034931,-1880.07,0.00020478,2]
[381149901,1756083034940,-400.0,0.00020478,2]
[381149902,1756083034950,-383.26209337,0.00020478,2]
[381150097,1756083040191,-280.209995,0.00020439,2]
[381150100,1756083040210,-219.790005,0.00020439,2]
[381150103,1756083040219,-500.0,0.00020439,2]
[381150105,1756083040229,-500.0,0.00020439,2]
[381150107,1756083040238,-500.0,0.00020439,2]
[381150109,1756083040247,-161.209995,0.00020439,2]
[381150111,1756083040259,-41.46170308,0.00020439,2]
[381150113,1756083040269,-500.0,0.00020439,2]
[381150115,1756083040278,-395.13829691,0.00020439,2]
[381150118,1756083040298,-37.83691468,0.00020439,2]
[381150120,1756083040308,-321.78226551,0.00020439,2]
[381150122,1756083040317,-500.0,0.00020439,2]
[381150124,1756083040327,-453.71081981,0.00020439,2]
[381150127,1756083040339,-46.28918019,0.00020439,2]
[381150129,1756083040348,-601.97790663,0.00020478,2]
[381150131,1756083040358,-590.22,0.00020478,2]
[381150133,1756083040367,-400.0,0.00020478,2]
[381150135,1756083040377,-400.0,0.00020478,2]
[381150137,1756083040387,-151.0,0.00020478,2]
[381150139,1756083040399,-400.0,0.00020478,2]
[381150141,1756083040409,-400.0,0.00020478,2]
[381150143,1756083040419,-1525.41295518,0.00020478,2]
[381150145,1756083040431,-1625.33704482,0.00020478,2]
[381150147,1756083040442,-987.16,0.00020478,2]
[381150149,1756083040452,-569.25,0.00020478,2]
[381150151,1756083040462,-400.0,0.00020478,2]
[381150153,1756083040472,-526.93,0.00020478,2]
[381150155,1756083040481,-400.0,0.00020478,2]
[381150157,1756083040491,-400.0,0.00020478,2]
[381150159,1756083040501,-151.0,0.00020478,2]
[381150161,1756083040511,-400.0,0.00020478,2]
[381150163,1756083040523,-400.0,0.00020478,2]
[381150165,1756083040532,-400.0,0.00020478,2]
[381150167,1756083040542,-400.0,0.00020478,2]
[381150169,1756083040551,-400.0,0.00020478,2]
[381150171,1756083040560,-1188.76,0.00020478,2]
[381150173,1756083040570,-669.85,0.00020478,2]
[381150175,1756083040579,-400.0,0.00020478,2]
[381150177,1756083040588,-400.0,0.00020478,2]
[381150179,1756083040598,-508.30815477,0.00020478,2]
[381150181,1756083040607,-151.0,0.00020478,2]
[381150183,1756083040616,-440.81,0.00020478,2]
[381150185,1756083040626,-151.0,0.00020478,2]
[381150187,1756083040635,-400.0,0.00020478,2]
[381150189,1756083040644,-400.0,0.00020478,2]
[381150191,1756083040654,-2964.43,0.00020478,2]
[381150193,1756083040663,-151.0,0.00020478,2]
[381150195,1756083040674,-151.0,0.00020478,2]
[381150197,1756083040683,-1296.82,0.00020478,2]
[381150199,1756083040693,-151.0,0.00020478,2]
[381150201,1756083040702,-400.0,0.00020478,2]
[381150203,1756083040712,-400.0,0.00020478,2]
[381150205,1756083040721,-719.98,0.00020478,2]
[381150207,1756083040730,-2036.67,0.00020478,2]
[381150209,1756083040739,-151.0,0.00020478,2]
[381150211,1756083040749,-151.0,0.00020478,2]
[381150213,1756083040758,-818.01,0.00020478,2]
[381150215,1756083040768,-151.0,0.00020478,2]
[381150217,1756083040780,-151.0,0.00020478,2]
[381150219,1756083040790,-151.0,0.00020478,2]
[381150220,1756083040799,-166.3450501,0.00020478,2]
[381150222,1756083040808,-151.0,0.00020478,2]
[381150224,1756083040818,-1280.1,0.00020478,2]
[381150226,1756083040827,-151.0,0.00020478,2]
[381150228,1756083040837,-138.23975016,0.00020478,2]
[381150272,1756083041466,-261.76024984,0.00020478,2]
[381150273,1756083041476,-340.0,0.00020478,2]
[381150274,1756083041486,-1224.62,0.00020478,2]
[381150275,1756083041495,-400.0,0.00020478,2]
[381150276,1756083041505,-151.0,0.00020478,2]
[381150277,1756083041514,-151.0,0.00020478,2]
[381150278,1756083041526,-151.0,0.00020478,2]
[381150279,1756083041535,-151.0,0.00020478,2]
[381150280,1756083041545,-400.0,0.00020478,2]
[381150281,1756083041555,-400.0,0.00020478,2]
[381150282,1756083041565,-151.0,0.00020478,2]
[381150283,1756083041574,-400.0,0.00020478,2]
[381150284,1756083041583,-3150.97,0.00020478,2]
[381150285,1756083041592,-400.0,0.00020478,2]
[381150286,1756083041602,-547.18,0.00020478,2]
[381150287,1756083041611,-151.0,0.00020478,2]
[381150288,1756083041620,-151.0,0.00020478,2]
[381150289,1756083041629,-400.0,0.00020478,2]
[381150290,1756083041638,-151.0,0.00020478,2]
[381150291,1756083041648,-400.0,0.00020478,2]
[381150292,1756083041657,-151.0,0.00020478,2]
[381150293,1756083041666,-164.133651,0.00020478,2]
[381150294,1756083041675,-460.0797164,0.00020478,2]
[381150295,1756083041685,-400.0,0.00020478,2]
[381150296,1756083041694,-1519.03,0.00020478,2]
[381150297,1756083041703,-400.0,0.00020478,2]
[381150298,1756083041713,-1652.96,0.00020478,2]
[381150299,1756083041722,-400.0,0.00020478,2]
[381150300,1756083041731,-400.31,0.00020478,2]
[381150301,1756083041741,-400.0,0.00020478,2]
[381150302,1756083041752,-500.92892512,0.00020478,2]
[381150303,1756083041761,-400.0,0.00020478,2]
[381150305,1756083041773,-400.0,0.00020478,2]
[381150307,1756083041782,-1143.98,0.00020478,2]
[381150308,1756083041791,-400.0,0.00020478,2]
[381150309,1756083041800,-400.0,0.00020478,2]
[381150310,1756083041810,-151.0,0.00020478,2]
[381150311,1756083041819,-151.0,0.00020478,2]
[381150312,1756083041829,-816.2,0.00020478,2]
[381150313,1756083041839,-151.0,0.00020478,2]
[381150314,1756083041848,-1250.51,0.00020478,2]
[381150315,1756083041857,-400.0,0.00020478,2]
[381150316,1756083041866,-1016.94,0.00020478,2]
[381150317,1756083041876,-1409.08,0.00020478,2]
[381150318,1756083041886,-400.0,0.00020478,2]
[381150319,1756083041896,-400.0,0.00020478,2]
[381150320,1756083041905,-400.0,0.00020478,2]
[381150321,1756083041915,-1036.69,0.00020478,2]
[381150322,1756083041924,-504.51,0.00020478,2]
[381150323,1756083041934,-151.0,0.00020478,2]
[381150324,1756083041943,-654.76896448,0.00020478,2]
[381150325,1756083041956,-429.13103552,0.00020478,2]
[381150326,1756083041965,-151.0,0.00020478,2]
[381150327,1756083041974,-400.0,0.00020478,2]
[381150328,1756083041985,-948.82,0.00020478,2]
[381150329,1756083041995,-151.0,0.00020478,2]
[381150330,1756083042004,-151.0,0.00020478,2]
[381150331,1756083042013,-153.835502,0.00020478,2]
[381150332,1756083042024,-153.835502,0.00020478,2]
[381150333,1756083042033,-153.835502,0.00020478,2]
[381150334,1756083042043,-153.835502,0.00020478,2]
[381150335,1756083042053,-153.835502,0.00020478,2]
[381150336,1756083042062,-153.835502,0.00020478,2]
[381150337,1756083042072,-153.835502,0.00020478,2]
[381150338,1756083042081,-153.835502,0.00020478,2]
[381150339,1756083042091,-921.11,0.00020478,2]
[381150340,1756083042104,-153.835502,0.00020478,2]
[381150341,1756083042115,-153.835502,0.00020478,2]
[381150342,1756083042124,-153.835502,0.00020478,2]
[381150343,1756083042135,-153.835502,0.00020478,2]
[381150344,1756083042144,-153.835502,0.00020478,2]
[381150345,1756083042153,-1880.51,0.00020478,2]
[381150346,1756083042162,-153.835502,0.00020478,2]
[381150347,1756083042172,-153.835502,0.00020478,2]
[381150348,1756083042181,-405.95,0.00020478,2]
[381150349,1756083042190,-153.835502,0.00020478,2]
[381150350,1756083042199,-400.0,0.00020478,2]
[381150351,1756083042209,-153.835502,0.00020478,2]
[381150352,1756083042219,-153.835502,0.00020478,2]
[381150353,1756083042229,-153.835502,0.00020478,2]
[381150354,1756083042238,-153.835511,0.00020478,2]
[381150355,1756083042248,-400.0,0.00020478,2]
[381150356,1756083042258,-400.0,0.00020478,2]
[381150357,1756083042267,-1395.02,0.00020478,2]
[381150358,1756083042278,-32238.55754133,0.00020478,8]
[381150359,1756083042287,-300.0,0.00020478,2]
[381150360,1756083042297,-666.0,0.00020478,2]
[381150361,1756083042307,-96401.14709986,0.00020479,8]
[381150362,1756083042319,-44982.0,0.00020479,8]
[381150363,1756083042338,-306.69,0.00020479,8]
[381150364,1756083042376,-149493.21707235,0.00020479,8]
[381150369,1756083042764,-1339.5,0.00020479,8]
[381150373,1756083042836,-11269.9360361,0.00020479,8]
[381150387,1756083044399,-400.0,0.00020478,2]
[381150390,1756083044417,-400.0,0.00020478,2]
[381150393,1756083044435,-33086.5492,0.00020479,8]
[381150396,1756083044457,-270.09,0.00020479,8]
[381150401,1756083044492,-400.52977882,0.00020479,8]
[381150411,1756083044577,-258.939681,0.00020479,8]
[381150415,1756083044603,-13454.22825926,0.00020479,8]
[381150619,1756083046712,-588.73550049,0.00019287,2]
[381150672,1756083047252,-961.96751618,0.00019287,2]
[381150673,1756083047300,-470.47,0.00019287,2]
[381150689,1756083048828,-3095.84698333,0.00019287,2]
[381150690,1756083048837,-400.0,0.00020478,2]
[381150691,1756083048848,-895.01,0.00020478,2]
[381150692,1756083048858,-151.0,0.00020478,2]
[381150693,1756083048872,-151.0,0.00020478,2]
[381150694,1756083048882,-9915.4823047,0.00020479,8]
[381150704,1756083212401,753.34,0.00026266,120]
[381150705,1756083212628,753.34,0.00028654,120]
[381150712,1756083961793,-158.11,0.00013699,2]
[381150713,1756083961830,-17.77,0.00013699,2]
[381150714,1756083964686,-158.16642307,0.00013699,2]
[381150715,1756083968867,-6.25357693,0.00013699,2]
[381150741,1756084232320,-152.0,0.00014384,2]
[381150742,1756084232331,-152.0,0.00015068,2]
[381150743,1756084232340,-159.6,0.00015454,2]
[381150744,1756084232351,-152.0,0.00015727,2]
[381150745,1756084232362,-1200.0,0.00018418,2]
[381150746,1756084232372,-283.0,0.00018418,2]
[381150747,1756084232381,-300.0,0.00018418,2]
[381150748,1756084232392,-150.0,0.00018419,2]
[381150749,1756084232402,-150.0,0.00018419,2]
[381150750,1756084232411,-150.0,0.00018419,2]
[381150751,1756084232429,-150.0,0.00018419,2]
[381150752,1756084232448,-150.0,0.00018419,2]
[381150753,1756084232457,-150.0,0.00018419,2]
[381150754,1756084232466,-150.0,0.00018419,2]
[381150755,1756084232476,-150.0,0.00018419,2]
[381150756,1756084232486,-150.0,0.00018419,2]
[381150757,1756084232496,-150.0,0.00018419,2]
[381150758,1756084232507,-150.0,0.00018419,2]
[381150759,1756084232517,-150.0,0.00018419,2]
[381150760,1756084232527,-150.0,0.00018508,2]
[381150761,1756084232538,-150.0,0.0001859,2]
[381150762,1756084232550,-150.0,0.00018597,2]
[381150763,1756084232560,-150.0,0.00018624,2]
[381150764,1756084232569,-150.0,0.00018647,2]
[381150765,1756084232579,-150.0,0.00018686,2]
[381150766,1756084232589,-18820.28,0.0001871,2]
[381150767,1756084232598,-2751.0,0.00018726,2]
[381150768,1756084232607,-150.0,0.0001876,2]
[381150769,1756084232617,-150.0,0.0001876,2]
[381150770,1756084232626,-150.0,0.00018775,2]
[381150771,1756084232635,-150.0,0.00018828,2]
[381150772,1756084232645,-150.0,0.00018828,2]
[381150773,1756084232654,-150.0,0.00018828,2]
[381150775,1756084232663,-150.0,0.00018864,2]
[381150776,1756084232672,-150.0,0.00018874,2]
[381150778,1756084232682,-150.0,0.00018931,2]
[381150779,1756084232692,-150.0,0.00018953,2]
[381150780,1756084232702,-150.0,0.00019033,2]
[381150781,1756084232711,-150.0,0.00019042,2]
[381150782,1756084232721,-488.26,0.00019068,2]
[381150783,1756084232731,-3502.47,0.00019083,2]
[381150785,1756084232741,-1000.0,0.00019088,2]
[381150787,1756084232751,-150.0,0.00019101,2]
[381150789,1756084232763,-150.0,0.00019101,2]
[381150791,1756084232773,-150.0,0.00019101,2]
[381150793,1756084232782,-753.34,0.00019103,2]
[381150795,1756084232791,-156.37,0.00019124,2]
[381150797,1756084232801,-150.0,0.00019131,2]
[381150799,1756084232811,-150.0,0.00019186,2]
[381150801,1756084232821,-164.29,0.00019204,2]
[381150803,1756084232831,-666.0,0.00019215,3]
[381150805,1756084232840,-150.0,0.0001922,4]
[381150807,1756084232850,-150.0,0.00019238,4]
[381150809,1756084232859,-150.0,0.00019238,4]
[381150811,1756084232869,-150.0,0.00019238,4]
[381150813,1756084232878,-150.0,0.00019272,4]
[381150815,1756084232888,-150.0,0.00019309,4]
[381150817,1756084232897,-174.72,0.00019317,2]
[381150819,1756084232908,-150.0,0.00019329,4]
[381150821,1756084232918,-1852.42,0.00019336,2]
[381150823,1756084232927,-500.0,0.00019364,2]
[381150825,1756084232937,-150.0,0.00019398,4]
[381150827,1756084232947,-150.0,0.00019442,4]
[381150829,1756084232956,-150.0,0.00019442,4]
[381150831,1756084232966,-150.0,0.00019442,4]
[381150833,1756084232975,-150.0,0.00019487,4]
[381150835,1756084232985,-150.0,0.00019556,4]
[381150836,1756084232994,-150.0,0.00019576,4]
[381150837,1756084233005,-1100.0,0.000196,7]
[381150838,1756084233015,-150.0,0.00019611,2]
[381150839,1756084233024,-322.6107,0.00019612,2]
[381150840,1756084233034,-151.0,0.00019612,2]
[381150841,1756084233045,-267.46074303,0.00019612,2]
[381150842,1756084233055,-300.0,0.00019612,2]
[381150843,1756084233064,-300.0,0.00019612,2]
[381150844,1756084233075,-300.0,0.00019612,2]
[381150845,1756084233085,-300.0,0.00019612,2]
[381150846,1756084233094,-300.0,0.00019612,2]
[381150847,1756084233105,-300.0,0.00019612,2]
[381150848,1756084233115,-300.0,0.00019612,2]
[381150849,1756084233124,-300.0,0.00019612,2]
[381150850,1756084233133,-300.0,0.00019612,2]
[381150851,1756084233143,-300.0,0.00019612,2]
[381150852,1756084233154,-362.29096203,0.00019612,2]
[381150853,1756084233163,-1000.0,0.00019612,2]
[381150854,1756084233173,-1000.0,0.00019612,2]
[381150855,1756084233183,-1000.0,0.00019612,2]
[381150856,1756084233193,-1000.0,0.00019612,2]
[381150857,1756084233202,-1000.0,0.00019612,2]
[381150858,1756084233212,-624.06139021,0.00019612,2]
[381150859,1756084233222,-150.0,0.00019613,4]
[381150860,1756084233232,-150.0,0.00019647,4]
[381150861,1756084233242,-150.0,0.00019647,4]
[381150862,1756084233253,-150.0,0.00019647,4]
[381150863,1756084233263,-150.0,0.00019665,4]
[381150864,1756084233273,-166.67,0.00019676,2]
[381150865,1756084233283,-532.0,0.000197,2]
[381150866,1756084233293,-2300.0,0.000197,7]
[381150867,1756084233302,-150.0,0.00019754,4]
[381150868,1756084233312,-150.0,0.00019784,4]
[381150869,1756084233323,-150.0,0.00019784,4]
[381150870,1756084233333,-150.0,0.00019784,4]
[381150871,1756084233343,-3400.0,0.000198,7]
[381150872,1756084233353,-150.0,0.00019843,4]
[381150873,1756084233362,-150.0,0.00019852,4]
[381150874,1756084233372,-400.69881228,0.0001987,2]
[381150875,1756084233382,-4600.0,0.000199,7]
[381150876,1756084233391,-212.11701231,0.000199,7]
[381150877,1756084233401,-150.0,0.00019932,4]
[381150878,1756084233411,-150.0,0.00019954,4]
[381150879,1756084233421,-161.08,0.0002,2]
[381150880,1756084233432,-150.0,0.00020011,4]
[381150881,1756084233446,-150.0,0.00020021,4]
[381150882,1756084233456,-150.0,0.00020056,4]
[381150883,1756084233465,-150.0,0.00020056,4]
[381150884,1756084233476,-150.0,0.00020056,4]
[381150885,1756084233487,-844.35788172,0.00020075,2]
[381150886,1756084233496,-150.0,0.0002011,4]
[381150887,1756084233508,-150.0,0.00020125,4]
[381150888,1756084233518,-150.0,0.00020125,4]
[381150889,1756084233528,-13521.24,0.0002018,2]
[381150890,1756084233538,-1680.0,0.00020186,2]
[381150891,1756084233548,-158.11,0.00020187,2]
[381150892,1756084233557,-150.0,0.00020199,4]
[381150893,1756084233571,-150.0,0.00020238,4]